bitfinex/quotes_SOLUSD_20250201
["timestamp","ask_amount","ask_price","bid_price","bid_amount"]
[1738431609944,3.74540022,227.22,227.16,0.03]
[1738431610854,20.0,227.21,227.16,0.03]
[1738431611162,0.82539348,227.2,227.16,0.03]
[1738431612256,0.8253583,227.21,227.16,0.03]
[1738431613950,20.0,227.2,227.16,0.03]
[1738431614130,0.82560626,227.19,227.16,0.03]
[1738431615439,20.82560626,227.19,227.16,0.03]
[1738431616561,0.82560626,227.19,227.16,0.03]
[1738431616866,20.82543998,227.21,227.16,0.03]
[1738431617364,0.82543998,227.21,227.16,0.03]
[1738431619262,20.82543998,227.21,227.16,0.03]
[1738431619674,0.82543998,227.21,227.16,0.03]
[1738431620978,0.82543998,227.21,227.16,1.6067]
[1738431621179,0.82532626,227.23,227.16,1.6067]
[1738431621975,0.063,227.21,227.16,1.6067]
[1738431623266,0.888317,227.21,227.16,1.6067]
[1738431624276,0.888317,227.21,227.16,0.03]
[1738431626489,21.888317,227.21,227.16,0.03]
[1738431627093,20.0,227.19,227.16,0.03]
[1738431627265,0.82564941,227.18,227.16,0.03]
[1738431628164,0.82564792,227.17,227.16,0.03]
[1738431629304,0.82564068,227.18,227.16,0.03]
[1738431630591,22.0,227.17,227.12,0.03]
[1738431630789,0.82577471,227.16,227.12,0.03]
[1738431630962,20.0,227.15,227.12,0.03]
[1738431631163,0.82578174,227.14,227.12,0.03]
[1738431631363,1.93275555,227.14,227.12,0.03]
[1738431638197,20.0,227.13,227.12,0.03]
[1738431646907,22.92,227.13,227.12,0.03]
[1738431650218,1.93275555,227.14,227.12,0.03]
[1738431650506,0.82578174,227.14,227.12,0.03]
[1738431650718,0.82560305,227.13,227.12,0.03]
[1738431651703,0.82560711,227.14,227.12,0.03]
[1738431652818,20.0,227.15,227.12,0.03]
[1738431653117,0.82556625,227.14,227.12,0.03]
[1738431653312,0.82557002,227.14,227.12,0.03]
[1738431653513,20.82556598,227.15,227.12,0.03]
[1738431658992,20.0,227.15,227.12,0.03]
[1738431663332,0.82556449,227.14,227.12,0.03]
[1738431665031,20.0,227.15,227.12,0.03]
[1738431665220,0.063,227.16,227.12,0.03]
[1738431665417,0.063,227.16,227.12,0.69035048]
[1738431665613,20.0,227.15,227.12,0.69035048]
[1738431665924,0.063,227.16,227.12,0.69035048]
[1738431668706,0.063,227.16,227.12,0.03]
[1738431668917,0.063,227.16,227.13,0.66036732]
[1738431670112,0.063,227.16,227.14,0.66028334]
[1738431670312,0.063,227.16,227.12,0.69028885]
[1738431678939,0.063,227.16,227.12,0.03]
[1738431679617,0.88864458,227.16,227.12,0.03]
[1738431680727,1.88864458,227.16,227.12,0.03]
[1738431680933,20.0,227.13,227.11,0.03]
[1738431681231,0.82582379,227.12,227.11,0.03]
[1738431682438,2.82582379,227.12,227.07,0.03]
[1738431682751,20.0,227.09,227.07,0.03]
[1738431682935,0.82593277,227.08,227.07,0.03]
[1738431686626,20.0,227.08,227.07,0.03]
[1738431688047,20.0,227.08,227.02,0.03]
[1738431688048,20.0,227.07,227.02,0.03]
[1738431688234,0.82600797,227.06,227.02,0.03]
[1738431692255,0.82600797,227.06,227.0,0.03]
[1738431692256,1.0,227.05,227.0,0.03]
[1738431692552,0.82614887,227.04,227.0,0.03]
[1738431693136,27.5485,227.03,226.98,0.063]
[1738431693322,20.0,226.99,226.98,0.063]
[1738431693537,23.7463359,226.99,226.97,0.03]
[1738431694559,23.7463359,226.99,226.96,0.063]
[1738431694560,24.7463359,226.99,226.96,0.063]
[1738431694851,25.87024286,226.99,226.96,0.063]
[1738431695071,20.0,226.97,226.96,0.063]
[1738431695357,20.8263668,226.97,226.96,0.063]
[1738431696162,0.8263668,226.97,226.96,0.063]
[1738431696331,0.82629115,226.98,226.96,0.063]
[1738431697662,20.82629115,226.98,226.96,0.063]
[1738431698233,0.82629115,226.98,226.96,0.063]
[1738431698432,3.74629115,226.98,226.96,0.063]
[1738431704664,5.51148815,226.98,226.96,0.063]
[1738431707963,20.0,226.94,226.9,0.063]
[1738431708147,0.82657973,226.93,226.9,0.063]
[1738431708354,20.82657973,226.93,226.9,0.063]
[1738431708859,13.41184853,226.92,226.9,0.063]
[1738431709065,20.0,226.85,226.76,1.6254]
[1738431709256,0.82680479,226.84,226.76,1.6254]
[1738431709674,0.82680479,226.84,226.71,0.66146948]
[1738431709855,0.82680479,226.84,226.7,1.6254]
[1738431709856,20.0,226.83,226.7,1.6254]
[1738431710169,0.82694549,226.82,226.7,1.6254]
[1738431710742,0.82694549,226.82,226.71,0.66155282]
[1738431710942,0.82689842,226.81,226.71,0.66155282]
[1738431711355,0.82689585,226.84,226.71,0.66155282]
[1738431711743,0.82689585,226.84,226.71,17.90763996]
[1738431712045,0.82689585,226.84,226.72,12.83538714]
[1738431712247,0.82689585,226.84,226.73,0.69143992]
[1738431712936,0.82689585,226.84,226.74,12.83538714]
[1738431713142,1.0,226.93,226.79,12.83538714]
[1738431713143,3.74672531,226.86,226.79,12.83538714]
[1738431713373,2.92,226.86,226.8,0.66127974]
[1738431714045,2.92,226.86,226.78,0.661296]
[1738431715550,2.92,226.86,226.73,0.03]
[1738431715551,20.0,226.79,226.73,0.03]
[1738431715757,0.82715251,226.78,226.73,0.03]
[1738431715963,26.4458134,226.78,226.73,0.03]
[1738431717079,20.0,226.74,226.73,0.03]
[1738431717255,20.82723869,226.74,226.73,0.03]
[1738431717456,26.44589958,226.74,226.73,0.03]
[1738431717879,29.36589958,226.74,226.66,1.6254]
[1738431718062,23.74723869,226.74,226.66,1.6254]
[1738431718261,20.0,226.7,226.61,1.6254]
[1738431718573,0.82732882,226.69,226.61,1.6254]
[1738431719980,0.82732882,226.69,226.55,2.2872986]
[1738431720178,20.0,226.66,226.57,26.24723567]
[1738431720378,20.0,226.66,226.58,13.4972592]
[1738431721066,20.0,226.66,226.58,0.66187206]
[1738431721287,0.8273418,226.65,226.58,0.66187206]
[1738431721588,20.0,226.66,226.59,13.41184853]
[1738431721775,20.0,226.66,226.6,0.66182972]
[1738431723697,0.82731912,226.65,226.58,0.6618553]
[1738431724172,0.82731912,226.65,226.56,14.0737731]
[1738431724683,20.0,226.66,226.57,26.24723567]
[1738431724867,20.0,226.66,226.58,13.49724428]
[1738431725983,20.0,226.66,226.6,12.83538714]
[1738431726288,0.82732954,226.72,226.65,12.83538714]
[1738431726592,20.0,226.72,226.65,0.66170407]
[1738431726905,0.82714919,226.71,226.65,0.66170407]
[1738431727199,0.8271484,226.74,226.65,0.66170407]
[1738431727501,8.53866089,226.75,226.66,12.83538714]
[1738431727502,5.61866089,226.75,226.66,12.83538714]
[1738431727657,5.61866089,226.75,226.67,13.49698887]
[1738431727863,20.0,226.72,226.67,13.49698887]
[1738431728355,20.0,226.72,226.67,0.66160173]
[1738431728554,20.0,226.72,226.68,0.6616298]
[1738431728759,20.0,226.72,226.66,0.66162869]
[1738431729889,0.82703791,226.71,226.64,1.6281]
[1738431730460,0.82703791,226.71,226.64,2.28981747]
[1738431734309,20.0,226.7,226.64,2.28981747]
[1738431734514,0.82718611,226.69,226.63,0.66173457]
[1738431734674,0.82718611,226.69,226.6,0.69184394]
[1738431735312,0.82718611,226.69,226.6,0.03]
[1738431735510,0.39589958,226.68,226.6,0.03]
[1738431735803,20.0,226.65,226.6,0.03]
[1738431736105,0.82742198,226.64,226.6,0.03]
[1738431741842,20.0,226.61,226.6,0.03]
[1738431748063,26.01456047,226.61,226.6,0.03]
[1738431749042,26.84226045,226.61,226.5,0.33]
[1738431749238,26.01456047,226.6,226.5,0.33]
[1738431749446,0.82783722,226.59,226.5,0.33]
[1738431749963,20.0,226.55,226.5,0.33]
[1738431750161,0.82782653,226.54,226.5,0.33]
[1738431755378,0.82777426,226.57,226.5,0.33]
[1738431755567,0.82777426,226.57,226.5,0.99214082]
[1738431756873,5.3382003,226.58,226.5,0.99214082]
[1738431757083,5.3382003,226.58,226.5,5.40714082]
[1738431758187,5.3382003,226.58,226.5,0.99214082]
[1738431759958,5.3382003,226.58,226.5,5.40704082]
[1738431760353,5.3382003,226.58,226.5,0.99214082]
[1738431760959,20.0,226.55,226.5,0.99214082]
[1738431761162,0.82776918,226.54,226.5,0.33]
[1738431761787,20.0,226.51,226.5,0.33]
[1738431780800,20.0,226.55,226.5,0.33]
[1738431781010,0.82778198,226.54,226.5,0.33]
[1738431783414,20.8277731,226.55,226.5,0.33]
[1738431783581,20.0,226.55,226.5,0.33]
[1738431784783,5.3382003,226.58,226.51,0.66216239]
[1738431784987,0.89058872,226.6,226.51,0.66216239]
[1738431785314,0.89058872,226.6,226.5,0.33]
[1738431785315,20.89058872,226.6,226.5,0.99209487]
[1738431785501,20.0,226.56,226.5,0.33]
[1738431785686,0.82770778,226.55,226.5,0.33]
[1738431785885,6.16590808,226.55,226.5,0.33]
[1738431786582,5.3382003,226.55,226.5,0.33]
[1738431787589,5.3382003,226.55,226.51,0.66216116]
[1738431788089,20.0,226.58,226.51,0.66216116]
[1738431790416,20.0,226.58,226.52,13.41184853]
[1738431790737,20.0,226.58,226.53,0.66200897]
[1738431790919,0.063,226.6,226.53,8.90574555]
[1738431791226,0.063,226.6,226.53,0.66200897]
[1738431791591,0.063,226.6,226.54,13.41184853]
[1738431791810,0.063,226.6,226.56,13.41184853]
[1738431792017,0.063,226.6,226.55,0.66193147]
[1738431795007,0.063,226.6,226.56,13.41184853]
[1738431795332,0.063,226.6,226.57,0.66188385]
[1738431795928,0.063,226.6,226.58,13.41184853]
[1738431796106,0.063,226.6,226.59,14.07366336]
[1738431796933,0.063,226.6,226.59,23.85609994]
[1738431797095,0.063,226.6,226.59,24.85609994]
[1738431797301,0.063,226.6,226.59,29.26929994]
[1738431799031,0.063,226.6,226.59,28.26929994]
[1738431799914,0.063,226.6,226.59,29.26929994]
[1738431801341,0.063,226.6,226.59,28.26929994]
[1738431803131,0.063,226.6,226.59,20.02556336]
[1738431803332,0.063,226.6,226.59,28.26929994]
[1738431806634,0.063,226.6,226.59,29.26929994]
[1738431806941,0.063,226.6,226.59,30.39478994]
[1738431807510,0.063,226.6,226.59,63.36973626]
[1738431809011,0.063,226.6,226.59,63.49522626]
[1738431809212,0.0001,226.6,226.59,63.49522626]
[1738431809738,0.0001,226.6,226.59,30.52027994]
[1738431811510,0.0001,226.6,226.59,29.39478994]
[1738431811720,0.0001,226.6,226.59,28.26929994]
[1738431812139,0.0001,226.6,226.59,29.26929994]
[1738431813257,0.0001,226.6,226.59,29.29929994]
[1738431814231,0.0001,226.6,226.59,30.42478994]
[1738431814839,0.0001,226.6,226.59,63.52522626]
[1738431817246,0.063,226.73,226.65,1.0]
[1738431817419,0.063,226.73,226.71,8.24373658]
[1738431817739,0.063,226.73,226.72,0.66142366]
[1738431817924,0.063,226.73,226.7,0.66147813]
[1738431818941,0.063,226.73,226.71,0.66151131]
[1738431820041,0.063,226.73,226.72,0.66147665]
[1738431822324,0.063,226.73,226.71,0.66145785]
[1738431824441,0.063,226.73,226.71,13.31599443]
[1738431824643,0.063,226.73,226.72,21.65558511]
[1738431827050,0.063,226.73,226.72,26.06628511]
[1738431827225,0.063,226.73,226.72,27.06628511]
[1738431828757,0.063,226.73,226.72,27.19177511]
[1738431830355,0.063,226.73,226.72,28.30233606]
[1738431831155,0.063,226.73,226.72,28.42782606]
[1738431831446,0.063,226.73,226.72,27.31726511]
[1738431831644,0.063,226.73,226.72,27.06628511]
[1738431833356,0.063,226.73,226.72,27.44275511]
[1738431835836,0.063,226.83,226.75,21.0]
[1738431836036,0.063,226.83,226.8,13.41184853]
[1738431836238,0.063,226.83,226.81,0.6611742]
[1738431836968,0.063,226.83,226.82,13.41184853]
[1738431837138,0.063,226.83,226.82,21.65558511]
[1738431838350,0.063,226.83,226.82,13.41184853]
[1738431841574,0.063,226.83,226.82,14.07302421]
[1738431841939,0.063,226.83,226.82,22.31676079]
[1738431842168,0.063,226.83,226.82,26.72546079]
[1738431843771,0.063,226.83,226.82,27.72546079]
[1738431845759,0.063,226.83,226.82,22.31676079]
[1738431845963,0.063,226.83,226.82,14.07302421]
[1738431848982,0.063,226.83,226.82,0.66117568]
[1738431849281,1.6923,226.83,226.78,0.6612141]
[1738431849650,8.3127,226.83,226.76,13.41184853]
[1738431849851,8.3127,226.83,226.77,0.66133205]
[1738431853879,8.3127,226.83,226.78,13.41184853]
[1738431854059,8.3127,226.83,226.79,0.66125242]
[1738431854375,0.063,226.83,226.8,21.65558511]
[1738431854581,0.063,226.83,226.82,8.24373658]
[1738431855172,0.063,226.83,226.82,21.65558511]
[1738431856388,0.063,226.83,226.82,26.06428511]
[1738431857960,0.063,226.83,226.82,21.65558511]
[1738431858303,0.063,226.83,226.81,0.66117384]
[1738431858495,0.063,226.83,226.82,0.66122745]
[1738431858660,0.063,226.83,226.78,8.24373658]
[1738431858661,0.063,226.83,226.8,13.41184853]
[1738431858860,0.063,226.83,226.81,0.66121634]
[1738431859083,0.063,226.83,226.82,13.41184853]
[1738431859280,0.063,226.83,226.81,0.66121634]
[1738431859754,0.063,226.83,226.82,13.49635824]
[1738431860174,0.063,226.83,226.82,26.90820677]
[1738431861393,0.063,226.83,226.82,31.31690677]
[1738431862592,0.063,226.83,226.82,26.90820677]
[1738431868398,0.063,226.83,226.82,46.27753808]
[1738431872594,0.0001,226.83,226.82,46.52851808]
[1738431872800,0.063,226.93,226.86,13.41184853]
[1738431873102,0.063,226.93,226.92,12.83514131]
[1738431874105,0.063,226.93,226.92,0.66089013]
[1738431874488,0.063,226.93,226.91,0.66089111]
[1738431876488,0.063,226.93,226.9,0.66096146]
[1738431877406,0.063,226.93,226.91,0.66095731]
[1738431877609,0.063,226.93,226.89,14.07281014]
[1738431877779,0.063,226.93,226.89,26.90795145]
[1738431878175,0.063,226.93,226.9,12.83514131]
[1738431878406,0.063,226.93,226.91,13.49606345]
[1738431878702,0.063,226.93,226.92,26.24698984]
[1738431879409,0.063,226.93,226.92,26.90780591]
[1738431879795,0.063,226.93,226.92,26.68661336]
[1738431880410,0.063,226.93,226.92,26.02579729]
[1738431882981,0.063,226.93,226.92,21.61899729]
[1738431883320,0.063,226.93,226.92,13.41184853]
[1738431883607,0.063,226.93,226.92,14.07269366]
[1738431885898,0.063,226.93,226.92,22.27984242]
[1738431888104,0.063,226.93,226.92,14.07269366]
[1738431890113,0.063,226.93,226.91,0.6608775]
[1738431890413,0.063,226.93,226.9,0.66094803]
[1738431890910,0.063,226.93,226.89,13.41184853]
[1738431891092,0.063,226.93,226.9,0.66097192]
[1738431891614,0.063,226.93,226.88,0.661004]
[1738431891803,0.063,226.93,226.87,0.66105097]
[1738431891992,0.063,226.93,226.85,0.66107272]
[1738431895019,20.0,226.91,226.84,0.66110406]
[1738431897825,20.0,226.91,226.84,8.86825282]
[1738431900517,0.063,226.93,226.85,8.20714876]
[1738431900722,0.063,226.93,226.86,8.86822677]
[1738431903729,0.063,226.93,226.86,0.66107801]
[1738431907499,0.063,226.93,226.86,8.86822677]
[1738431908009,0.063,226.93,226.9,8.20714876]
[1738431908203,0.063,226.93,226.92,8.20714876]
[1738431908400,0.063,226.93,226.92,12.61394876]
[1738431908834,0.063,226.93,226.92,26.02579729]
[1738431909834,0.063,226.93,226.92,194.45439233]
[1738431910015,0.063,227.03,226.94,2.0]
[1738431910212,0.063,227.03,226.95,22.27960639]
[1738431911327,0.063,227.03,226.95,26.68580639]
[1738431912225,0.063,227.03,226.95,162.53678639]
[1738431912438,0.063,227.03,226.95,161.87617729]
[1738431913735,0.063,227.03,226.95,166.4827534]
[1738431914137,0.063,227.03,226.95,166.2317734]
[1738431917631,0.063,227.03,226.95,30.6317734]
[1738431917932,0.063,227.03,226.95,31.29242422]
[1738431921457,0.063,227.03,226.95,26.88622422]
[1738431921626,0.063,227.03,226.95,14.07249935]
[1738431923043,0.063,227.03,226.95,31.29242422]
[1738431923554,0.063,227.03,226.95,26.88622422]
[1738431924950,0.063,227.03,226.95,31.29242422]
[1738431926558,0.063,227.03,226.95,26.88622422]
[1738431926726,0.063,227.03,226.95,14.07249935]
[1738431927054,0.063,227.03,226.95,26.88622422]
[1738431927853,0.063,227.03,226.95,31.29242422]
[1738431930735,0.063,227.03,226.97,1.0]
[1738431930928,0.063,227.03,227.02,26.2255734]
[1738431931133,0.063,227.03,227.02,26.88606221]
[1738431932351,0.063,227.03,227.02,31.29086221]
[1738431932550,0.063,227.03,227.02,167.89086221]
[1738431932736,0.063,227.03,227.02,180.16958827]
[1738431933635,0.063,227.06,227.05,1.0]
[1738431933833,0.063,227.06,227.05,23.26688227]
[1738431934551,0.063,227.06,227.05,159.99237227]
[1738431934749,0.063,227.06,227.05,159.33208967]
[1738431935125,0.063,227.06,227.05,160.98737967]
[1738431935424,0.063,227.16,227.12,13.41184853]
[1738431935620,0.063,227.16,227.15,8.19475114]
[1738431937465,0.063,227.16,227.13,8.85487889]
[1738431937639,0.063,227.16,227.14,21.60659967]
[1738431937845,0.063,227.16,227.15,26.87220152]
[1738431940941,0.063,227.16,227.15,0.66016549]
[1738431941159,0.063,227.16,227.12,0.66026528]
[1738431941668,0.063,227.16,227.13,13.41184853]
[1738431941866,0.063,227.16,227.14,0.6602467]
[1738431947955,0.063,227.16,227.13,0.66028696]
[1738431954875,0.063,227.16,227.12,0.66029885]
[1738431955075,0.88846691,227.16,227.08,0.66037353]
[1738431955283,0.88846691,227.16,226.99,13.52]
[1738431955284,20.0,227.13,227.06,0.66047163]
[1738431955486,20.0,227.13,227.07,13.41184853]
[1738431955909,20.0,227.13,227.08,0.66047636]
[1738431961279,0.063,227.16,227.12,8.19842411]
[1738431961466,0.063,227.16,227.13,0.66027334]
[1738431961667,0.063,227.16,227.13,8.85869745]
[1738431963086,0.063,227.16,227.15,8.19842411]
[1738431963290,0.063,227.16,227.15,22.27045386]
[1738431963496,0.063,227.16,227.15,55.0641503]
[1738431963794,0.063,227.19,227.18,42.61027264]
[1738431963959,0.063,227.19,227.18,43.27021863]
[1738431964486,0.063,227.19,227.18,47.67191863]
[1738431964676,0.063,227.19,227.18,47.79740863]
[1738431964878,0.063,227.19,227.18,186.10169863]
[1738431965097,0.063,227.19,227.18,185.44175264]
[1738431965388,0.0001,227.19,227.18,185.69273264]
[1738431965688,0.0431,227.21,227.2,2.0]
[1738431965897,0.0431,227.21,227.2,29.108324]
[1738431966082,0.0431,227.21,227.2,26.857344]
[1738431966466,0.0431,227.21,227.2,29.108324]
[1738431966783,0.0431,227.21,227.2,33.509724]
[1738431968194,0.0431,227.21,227.2,31.258744]
[1738431969683,0.0431,227.21,227.2,33.509724]
[1738431970065,0.063,227.26,227.24,20.0]
[1738431970262,0.063,227.26,227.25,47.85730327]
[1738431971302,0.063,227.26,227.25,52.25770327]
[1738431971678,0.063,227.26,227.25,187.85770327]
[1738431971873,0.063,227.26,227.25,187.19791683]
[1738431972069,0.0001,227.26,227.25,200.36005513]
[1738431972270,0.0001,227.26,227.25,200.48554513]
[1738431972504,0.063,227.39,227.29,21.0]
[1738431972795,0.063,227.39,227.33,26.19751683]
[1738431973785,0.063,227.39,227.33,13.41184853]
[1738431973984,0.063,227.39,227.33,14.07153186]
[1738431975413,0.063,227.39,227.33,26.85720016]
[1738431976176,0.063,227.39,227.33,31.25600016]
[1738431976495,0.063,227.39,227.33,32.25600016]
[1738431977089,0.063,227.39,227.33,33.38149016]
[1738431978606,0.063,227.39,227.33,169.10698016]
[1738431978806,0.063,227.39,227.33,168.44729683]
[1738431982496,0.063,227.39,227.33,168.57278683]
[1738431982703,0.063,227.39,227.33,168.69827683]
[1738431983013,0.063,227.39,227.36,1.0]
[1738431983179,0.063,227.39,227.38,12.7856683]
[1738431983811,0.063,227.39,227.38,27.32300683]
[1738431984000,0.063,227.39,227.38,163.17398683]
[1738431984302,0.063,227.39,227.38,167.57188683]
[1738431984477,0.063,227.39,227.38,167.44639683]
[1738431986787,0.063,227.39,227.38,166.32090683]
[1738431987105,0.063,227.39,227.38,167.32090683]
[1738431987709,0.063,227.39,227.38,162.70656423]
[1738431990008,0.063,227.39,227.38,162.83205423]
[1738431990199,0.063,227.43,227.42,22.12549]
[1738431990510,0.063,227.43,227.42,179.96789161]
[1738431990711,0.063,227.43,227.42,179.30866423]
[1738431991299,0.063,227.43,227.42,183.70576423]
[1738431992009,0.063,227.43,227.42,181.58027423]
[1738431994819,0.063,227.43,227.42,25.98027423]
[1738431995120,0.063,227.43,227.42,14.07115473]
[1738431995285,0.063,227.43,227.42,22.24248043]
[1738431996099,0.063,227.43,227.42,26.63958043]
[1738431998205,0.063,227.43,227.42,162.36507043]
[1738431998406,0.063,227.43,227.42,161.70576423]
[1738431998627,0.063,227.43,227.42,161.83125423]
[1738431998801,0.063,227.43,227.42,26.35674423]
[1738431999007,0.063,227.43,227.42,27.01590461]
[1738431999309,0.063,227.43,227.42,27.14139461]
[1738432000220,0.03,227.49,227.43,15.78831853]
[1738432000522,0.03,227.49,227.46,42.83415423]
[1738432000818,0.03,227.49,227.46,43.49324474]
[1738432001818,0.03,227.49,227.46,47.88954474]
[1738432002005,0.03,227.49,227.46,48.01503474]
[1738432002206,0.03,227.49,227.46,48.14052474]
[1738432005204,7.7287,227.6,227.52,13.66282853]
[1738432005507,7.7287,227.6,227.56,21.58317423]
[1738432006110,1.6195,227.65,227.56,21.58317423]
[1738432006530,1.6195,227.65,227.56,26.63641004]
[1738432007024,6.1102,227.66,227.56,28.01288004]
[1738432007234,1.6195,227.71,227.56,60.82367284]
[1738432007418,7.7297,227.71,227.61,2.0]
[1738432007625,7.7297,227.71,227.68,13.41184853]
[1738432007802,7.7297,227.71,227.69,0.65864193]
[1738432008234,7.7297,227.71,227.7,13.41184853]
[1738432008437,7.7297,227.76,227.7,13.41184853]
[1738432008617,7.7297,227.76,227.71,0.65861158]
[1738432009030,7.7297,227.76,227.66,8.1713257]
[1738432009218,7.7297,227.76,227.68,13.41184853]
[1738432009418,7.7297,227.76,227.69,0.65865466]
[1738432012333,7.7297,227.76,227.7,13.41184853]
[1738432012545,7.7297,227.76,227.72,13.41184853]
[1738432012734,7.7297,227.76,227.73,0.65856486]
[1738432013055,7.7297,227.76,227.72,13.41184853]
[1738432013213,7.7297,227.76,227.69,0.65856088]
[1738432013554,7.7297,227.76,227.7,13.41184853]
[1738432013723,7.7297,227.76,227.72,13.41184853]
[1738432013907,7.7297,227.76,227.73,0.65852889]
[1738432015543,7.7927,227.76,227.73,0.65852889]
[1738432018418,7.7927,227.76,227.7,0.65855536]
[1738432018616,7.7927,227.76,227.68,26.15321837]
[1738432018825,7.7927,227.76,227.7,13.41184853]
[1738432019036,7.7927,227.76,227.71,0.65859434]
[1738432020151,0.063,227.76,227.73,20.0]
[1738432020327,0.063,227.76,227.72,13.41184853]
[1738432020328,0.063,227.76,227.75,26.15321837]
[1738432020513,0.063,227.76,227.75,13.41184853]
[1738432020721,0.063,227.76,227.73,0.65848195]
[1738432020923,0.063,227.76,227.69,0.65856572]
[1738432021128,0.063,227.76,227.69,5.05046572]
[1738432021835,0.063,227.76,227.7,13.41184853]
[1738432022030,8.036,227.76,227.7,0.65856232]
[1738432022247,8.036,227.76,227.66,12.74136984]
[1738432022423,8.036,227.76,227.67,13.39999054]
[1738432023351,8.036,227.76,227.67,0.6586207]
[1738432023546,20.0,227.73,227.67,0.6586207]
[1738432023840,8.036,227.76,227.69,13.41184853]
[1738432024141,8.036,227.76,227.7,0.65859537]
[1738432024927,8.036,227.76,227.68,13.41184853]
[1738432025240,8.036,227.76,227.69,0.65863176]
[1738432026024,8.036,227.76,227.7,0.65865256]
[1738432026238,8.036,227.76,227.68,13.41184853]
[1738432026436,8.036,227.76,227.69,0.65863804]
[1738432026837,8.036,227.76,227.7,13.41184853]
[1738432027039,8.036,227.76,227.72,13.41184853]
[1738432027263,8.036,227.76,227.71,0.65859544]
[1738432028029,8.036,227.76,227.72,0.65859821]
[1738432028244,0.063,227.73,227.7,13.41184853]
[1738432028456,0.063,227.73,227.71,0.65863001]
[1738432028967,0.063,227.73,227.72,13.41184853]
[1738432029672,0.063,227.73,227.72,0.65857967]
[1738432030454,0.063,227.73,227.68,0.65863215]
[1738432030833,0.063,227.73,227.64,0.65871642]
[1738432031036,7.973,227.72,227.64,0.65871642]
[1738432031777,0.82345764,227.71,227.65,14.07061464]
[1738432032967,7.973,227.72,227.65,14.07061464]
[1738432033381,0.82348306,227.71,227.61,0.65878645]
[1738432034364,0.82348306,227.71,227.62,0.65889955]
[1738432034744,20.0,227.69,227.62,0.65889955]
[1738432035349,20.0,227.69,227.62,13.41184853]
[1738432036676,0.82361511,227.68,227.62,13.41184853]
[1738432036859,0.82361511,227.68,227.61,0.65887408]
[1738432038691,0.82361511,227.68,227.58,0.65891728]
[1738432039674,0.82361511,227.68,227.59,0.65896056]
[1738432042370,0.82361511,227.68,227.6,0.6589632]
[1738432042676,0.82361511,227.68,227.58,0.65896864]
[1738432044063,20.063,227.69,227.6,13.41184853]
[1738432044264,0.82360705,227.68,227.61,0.65888564]
[1738432046377,0.82360705,227.68,227.59,0.65890521]
[1738432047489,0.82360705,227.68,227.59,13.41184853]
[1738432048381,0.82360705,227.68,227.58,13.41184853]
[1738432048684,0.82360705,227.68,227.59,0.65898217]
[1738432051101,0.82360705,227.68,227.61,8.16122974]
[1738432051307,0.82360705,227.68,227.62,0.6588908]
[1738432052494,0.82360705,227.68,227.61,0.65889889]
[1738432053517,0.82360705,227.68,227.62,0.65889209]
[1738432053667,0.82360705,227.68,227.61,13.41184853]
[1738432053867,0.82360705,227.68,227.62,0.65889192]
[1738432054864,20.063,227.69,227.62,0.65889192]
[1738432062833,0.063,227.69,227.62,0.65889192]
[1738432064416,20.063,227.69,227.62,0.65889192]
[1738432073218,20.063,227.69,227.62,0.65889192]
[1738432073895,0.82360636,227.68,227.62,0.65889192]
[1738432074119,20.063,227.69,227.62,0.65889192]
[1738432076095,0.82360488,227.68,227.62,0.65889192]
[1738432078216,20.063,227.69,227.62,0.65889192]
[1738432078603,0.82360848,227.68,227.62,0.65889192]